fUSD/lending_fUSD_20240814
["ID","MTS","AMOUNT","RATE_DAILY","PERIOD"]
[334812869,1723603852785,-1803.91,0.00013799,2]
[334812870,1723603852795,-726.54,0.00013799,2]
[334812871,1723603852805,-726.54,0.00013799,2]
[334812872,1723603852815,-500.0,0.00013799,2]
[334812873,1723603852825,-562.61880548,0.00013799,2]
[334812874,1723603852835,-2454.67,0.00013799,2]
[334812875,1723603852846,-80296.2781152,0.000138,2]
[334812876,1723603852856,-211.77694306,0.00013879,2]
[334812877,1723603852866,-155.0,0.00013889,2]
[334812878,1723603852877,-1845.34711469,0.00013889,2]
[334812879,1723603852887,-500.0,0.00013899,2]
[334812880,1723603852897,-500.0,0.00013899,2]
[334812881,1723603852907,-500.0,0.00013899,2]
[334812882,1723603852917,-1803.91,0.00013899,2]
[334812883,1723603852927,-1803.91,0.00013899,2]
[334812884,1723603852937,-726.54,0.00013899,2]
[334812885,1723603852950,-726.54,0.00013899,2]
[334812886,1723603852960,-2454.67,0.00013899,2]
[334812887,1723603852970,-2454.67,0.00013899,2]
[334812888,1723603852980,-2454.67,0.00013899,2]
[334812889,1723603852991,-170.57448432,0.00013941,2]
[334812890,1723603853001,-500.0,0.00013971,2]
[334812891,1723603853011,-500.0,0.00013971,2]
[334812892,1723603853021,-536.94,0.00013971,2]
[334812893,1723603853031,-500.0,0.00013971,2]
[334812894,1723603853042,-500.0,0.00013971,2]
[334812895,1723603853052,-409.43260381,0.00013971,2]
[334812896,1723603853062,-1803.91,0.00013971,2]
[334812897,1723603853071,-1803.91,0.00013971,2]
[334812898,1723603853082,-1803.91,0.00013971,2]
[334812899,1723603853094,-1803.91,0.00013971,2]
[334812900,1723603853104,-1803.91,0.00013971,2]
[334812901,1723603853114,-1803.91,0.00013971,2]
[334812902,1723603853124,-1803.98,0.00013971,2]
[334812903,1723603853135,-500.0,0.00013971,2]
[334812904,1723603853146,-500.0,0.00013971,2]
[334812905,1723603853156,-500.0,0.00013971,2]
[334812906,1723603853166,-726.54,0.00013971,2]
[334812907,1723603853176,-726.54,0.00013971,2]
[334812908,1723603853185,-726.54,0.00013971,2]
[334812909,1723603853196,-726.54,0.00013971,2]
[334812910,1723603853206,-726.54,0.00013971,2]
[334812911,1723603853216,-726.54,0.00013971,2]
[334812912,1723603853226,-726.54254329,0.00013971,2]
[334812913,1723603853236,-2454.67,0.00013971,2]
[334812914,1723603853246,-2454.67,0.00013971,2]
[334812915,1723603853506,-2454.67,0.00013971,2]
[334812916,1723603853516,-2454.67,0.00013971,2]
[334812917,1723603853526,-2454.67,0.00013971,2]
[334812918,1723603853535,-2454.7268476,0.00013971,2]
[334812919,1723603853545,-76062.81630324,0.00013972,2]
[334812920,1723603853555,-500.0,0.00013972,2]
[334812921,1723603853565,-500.0,0.00013972,2]
[334812922,1723603853574,-500.0,0.00013972,2]
[334812923,1723603853583,-500.0,0.00013972,2]
[334812924,1723603853593,-500.0,0.00013972,2]
[334812925,1723603853602,-500.0,0.00013972,2]
[334812926,1723603853611,-539.19527207,0.00013972,2]
[334812927,1723603853621,-500.0,0.00013972,2]
[334812928,1723603853630,-500.0,0.00013972,2]
[334812929,1723603853640,-500.0,0.00013972,2]
[334812930,1723603853649,-458.58810233,0.00013972,2]
[334812931,1723603853659,-500.0,0.00013972,2]
[334812932,1723603853668,-500.0,0.00013972,2]
[334812933,1723603853678,-500.0,0.00013972,2]
[334812934,1723603853687,-500.0,0.00013972,2]
[334812935,1723603853696,-500.0,0.00013972,2]
[334812936,1723603853705,-420.49056202,0.00013972,2]
[334812937,1723603853715,-1717.68,0.00013972,2]
[334812938,1723603853725,-500.0,0.00013972,2]
[334812939,1723603853734,-500.0,0.00013972,2]
[334812940,1723603853744,-1135.6,0.00013972,2]
[334812941,1723603853753,-500.0,0.00013972,2]
[334812942,1723603853763,-500.0,0.00013972,2]
[334812943,1723603853772,-500.0,0.00013972,2]
[334812944,1723603853781,-500.0,0.00013972,2]
[334812945,1723603853791,-500.0,0.00013972,2]
[334812946,1723603853800,-500.0,0.00013972,2]
[334812947,1723603853809,-500.0,0.00013972,2]
[334812948,1723603853819,-500.0,0.00013972,2]
[334812949,1723603853828,-500.0,0.00013972,2]
[334812950,1723603853838,-505.87,0.00013972,2]
[334812951,1723603853849,-500.8735274,0.00013972,2]
[334812952,1723603853859,-668.17,0.00013972,2]
[334812953,1723603853868,-558.70501747,0.00013972,2]
[334812954,1723603853877,-500.0,0.00013972,2]
[334812955,1723603853887,-2087.27,0.00013972,2]
[334812956,1723603853896,-1187.42,0.00013972,2]
[334812957,1723603853905,-504.46,0.00013972,2]
[334812958,1723603853914,-500.0,0.00013972,2]
[334812959,1723603853923,-500.0,0.00013972,2]
[334812960,1723603853933,-500.0,0.00013972,2]
[334812961,1723603853943,-639.38,0.00013972,2]
[334812962,1723603853955,-500.0,0.00013972,2]
[334812963,1723603853964,-500.0,0.00013972,2]
[334812964,1723603853974,-500.0,0.00013972,2]
[334812965,1723603853984,-500.0,0.00013972,2]
[334812966,1723603853995,-500.0,0.00013972,2]
[334812967,1723603854005,-500.0,0.00013972,2]
[334812968,1723603854014,-500.0,0.00013972,2]
[334812969,1723603854024,-500.0,0.00013972,2]
[334812970,1723603854034,-500.0,0.00013972,2]
[334812971,1723603854044,-500.0,0.00013972,2]
[334812972,1723603854053,-500.0,0.00013972,2]
[334812973,1723603854063,-1269.99,0.00013972,2]
[334812974,1723603854073,-477.3107863,0.00013972,2]
[334812975,1723603854082,-500.0,0.00013972,2]
[334812976,1723603854091,-500.0,0.00013972,2]
[334812977,1723603854101,-500.0,0.00013972,2]
[334812978,1723603854110,-500.0,0.00013972,2]
[334812979,1723603854119,-500.0,0.00013972,2]
[334812980,1723603854128,-500.0,0.00013972,2]
[334812981,1723603854138,-711.22,0.00013972,2]
[334812982,1723603854147,-942.4,0.00013972,2]
[334812983,1723603854156,-500.0,0.00013972,2]
[334812984,1723603854165,-500.0,0.00013972,2]
[334812985,1723603854175,-1243.83,0.00013972,2]
[334812986,1723603854184,-1433.34,0.00013972,2]
[334812987,1723603854193,-500.0,0.00013972,2]
[334812988,1723603854203,-500.0,0.00013972,2]
[334812989,1723603854212,-500.0,0.00013972,2]
[334812990,1723603854221,-641.88,0.00013972,2]
[334812991,1723603854231,-500.0,0.00013972,2]
[334812992,1723603854240,-596.25,0.00013972,2]
[334812993,1723603854250,-405.51940446,0.00013972,2]
[334812994,1723603854259,-681.49,0.00013972,2]
[334812995,1723603854269,-500.0,0.00013972,2]
[334812996,1723603854278,-514.21,0.00013972,2]
[334812997,1723603854287,-500.0,0.00013972,2]
[334812998,1723603854297,-500.0,0.00013972,2]
[334812999,1723603854306,-500.0,0.00013972,2]
[334813000,1723603854318,-500.0,0.00013972,2]
[334813001,1723603854327,-500.0,0.00013972,2]
[334813002,1723603854338,-840.72,0.00013972,2]
[334813003,1723603854349,-500.0,0.00013972,2]
[334813004,1723603854359,-573.46747783,0.00013972,2]
[334813005,1723603854368,-519.79,0.00013972,2]
[334813006,1723603854378,-500.0,0.00013972,2]
[334813007,1723603854387,-500.0,0.00013972,2]
[334813008,1723603854397,-500.0,0.00013972,2]
[334813009,1723603854407,-500.0,0.00013972,2]
[334813010,1723603854417,-261.440025,0.00013972,2]
[334813011,1723603854427,-500.0,0.00013972,2]
[334813012,1723603854436,-1752.99,0.00013972,2]
[334813013,1723603854446,-500.0,0.00013972,2]
[334813014,1723603854455,-500.0,0.00013972,2]
[334813015,1723603854464,-500.0,0.00013972,2]
[334813016,1723603854474,-681.04,0.00013972,2]
[334813017,1723603854483,-500.0,0.00013972,2]
[334813018,1723603854493,-500.0,0.00013972,2]
[334813019,1723603854503,-500.0,0.00013972,2]
[334813020,1723603854513,-500.0,0.00013972,2]
[334813021,1723603854523,-500.0,0.00013972,2]
[334813022,1723603854532,-500.0,0.00013972,2]
[334813023,1723603854543,-500.0,0.00013972,2]
[334813024,1723603854553,-500.0,0.00013972,2]
[334813025,1723603854563,-500.0,0.00013972,2]
[334813026,1723603854573,-500.0,0.00013972,2]
[334813027,1723603854582,-501.8106033,0.00013972,2]
[334813028,1723603854592,-500.0,0.00013972,2]
[334813029,1723603854602,-500.0,0.00013972,2]
[334813030,1723603854611,-500.0,0.00013972,2]
[334813031,1723603854621,-500.0,0.00013972,2]
[334813032,1723603854630,-500.0,0.00013972,2]
[334813033,1723603854641,-515.84,0.00013972,2]
[334813034,1723603854651,-500.0,0.00013972,2]
[334813035,1723603854660,-500.0,0.00013972,2]
[334813036,1723603854670,-504.81202865,0.00013972,2]
[334813037,1723603854679,-502.37098578,0.00013972,2]
[334813038,1723603854689,-500.0,0.00013972,2]
[334813039,1723603854700,-500.0,0.00013972,2]
[334813040,1723603854710,-500.0,0.00013972,2]
[334813041,1723603854720,-500.0,0.00013972,2]
[334813042,1723603854730,-788.88,0.00013972,2]
[334813043,1723603854739,-500.0,0.00013972,2]
[334813044,1723603854749,-500.0,0.00013972,2]
[334813045,1723603854759,-500.0,0.00013972,2]
[334813046,1723603854770,-500.0,0.00013972,2]
[334813047,1723603854780,-500.0,0.00013972,2]
[334813048,1723603854790,-540.27,0.00013972,2]
[334813049,1723603854800,-500.0,0.00013972,2]
[334813050,1723603854810,-500.0,0.00013972,2]
[334813051,1723603854819,-500.0,0.00013972,2]
[334813052,1723603854829,-500.0,0.00013972,2]
[334813053,1723603854838,-500.0,0.00013972,2]
[334813054,1723603854849,-500.0,0.00013972,2]
[334813055,1723603854858,-500.0,0.00013972,2]
[334813056,1723603854868,-539.27,0.00013972,2]
[334813057,1723603854878,-500.0,0.00013972,2]
[334813058,1723603854887,-500.0,0.00013972,2]
[334813059,1723603854897,-556.85,0.00013972,2]
[334813060,1723603854906,-500.0,0.00013972,2]
[334813061,1723603854916,-500.0,0.00013972,2]
[334813062,1723603854926,-510.55,0.00013972,2]
[334813063,1723603854936,-500.0,0.00013972,2]
[334813064,1723603854949,-1828.99,0.00013972,2]
[334813065,1723603854958,-500.0,0.00013972,2]
[334813066,1723603854967,-500.0,0.00013972,2]
[334813067,1723603854977,-521.14,0.00013972,2]
[334813068,1723603854987,-500.0,0.00013972,2]
[334813069,1723603854997,-500.0,0.00013972,2]
[334813070,1723603855006,-500.0,0.00013972,2]
[334813071,1723603855016,-500.0,0.00013972,2]
[334813072,1723603855027,-500.0,0.00013972,2]
[334813073,1723603855036,-500.0,0.00013972,2]
[334813074,1723603855046,-500.0,0.00013972,2]
[334813075,1723603855056,-500.0,0.00013972,2]
[334813076,1723603855065,-500.0,0.00013972,2]
[334813077,1723603855075,-500.0,0.00013972,2]
[334813078,1723603855084,-500.0,0.00013972,2]
[334813079,1723603855095,-500.0,0.00013972,2]
[334813080,1723603855104,-788.86,0.00013972,2]
[334813081,1723603855114,-500.0,0.00013972,2]
[334813082,1723603855123,-500.0,0.00013972,2]
[334813083,1723603855133,-500.0,0.00013972,2]
[334813084,1723603855142,-500.0,0.00013972,2]
[334813085,1723603855152,-500.0,0.00013972,2]
[334813086,1723603855162,-500.0,0.00013972,2]
[334813087,1723603855171,-500.0,0.00013972,2]
[334813088,1723603855182,-500.0,0.00013972,2]
[334813089,1723603855191,-570.12,0.00013972,2]
[334813090,1723603855201,-710.6,0.00013972,2]
[334813091,1723603855210,-504.73857722,0.00013972,2]
[334813092,1723603855220,-500.0,0.00013972,2]
[334813093,1723603855230,-500.0,0.00013972,2]
[334813094,1723603855240,-500.0,0.00013972,2]
[334813095,1723603855249,-500.0,0.00013972,2]
[334813096,1723603855259,-767.65,0.00013972,2]
[334813097,1723603855269,-535.80179383,0.00013972,2]
[334813098,1723603855278,-500.0,0.00013972,2]
[334813099,1723603855287,-550.4,0.00013972,2]
[334813100,1723603855297,-500.0,0.00013972,2]
[334813101,1723603855307,-500.0,0.00013972,2]
[334813102,1723603855317,-500.0,0.00013972,2]
[334813103,1723603855327,-500.0,0.00013972,2]
[334813104,1723603855336,-500.0,0.00013972,2]
[334813105,1723603855346,-500.0,0.00013972,2]
[334813106,1723603855355,-500.0,0.00013972,2]
[334813107,1723603855365,-500.0,0.00013972,2]
[334813108,1723603855375,-500.0,0.00013972,2]
[334813109,1723603855384,-500.0,0.00013972,2]
[334813110,1723603855395,-1176.84,0.00013972,2]
[334813111,1723603855405,-500.0,0.00013972,2]
[334813112,1723603855414,-593.23,0.00013972,2]
[334813113,1723603855424,-500.0,0.00013972,2]
[334813114,1723603855434,-500.0,0.00013972,2]
[334813115,1723603855444,-500.0,0.00013972,2]
[334813116,1723603855455,-500.0,0.00013972,2]
[334813117,1723603855464,-500.0,0.00013972,2]
[334813118,1723603855474,-500.0,0.00013972,2]
[334813119,1723603855483,-500.0,0.00013972,2]
[334813120,1723603855493,-500.0,0.00013972,2]
[334813121,1723603855503,-500.0,0.00013972,2]
[334813122,1723603855513,-500.0,0.00013972,2]
[334813123,1723603855524,-500.0,0.00013972,2]
[334813124,1723603855534,-500.0,0.00013972,2]
[334813125,1723603855544,-1645.84,0.00013972,2]
[334813126,1723603855553,-500.0,0.00013972,2]
[334813127,1723603855563,-386.22512593,0.00013972,2]
[334813128,1723603855573,-500.0,0.00013972,2]
[334813129,1723603855582,-163.94024331,0.00013972,2]
[334813130,1723603855592,-500.0,0.00013972,2]
[334813131,1723603855602,-500.0,0.00013972,2]
[334813132,1723603855611,-500.0,0.00013972,2]
[334813133,1723603855621,-527.39,0.00013972,2]
[334813134,1723603855631,-500.0,0.00013972,2]
[334813135,1723603855640,-500.0,0.00013972,2]
[334813136,1723603855649,-500.0,0.00013972,2]
[334813137,1723603855659,-500.0,0.00013972,2]
[334813138,1723603855668,-150.0,0.00013972,2]
[334813139,1723603855678,-679.23,0.00013972,2]
[334813140,1723603855688,-502.10363464,0.00013972,2]
[334813141,1723603855698,-500.0,0.00013972,2]
[334813142,1723603855707,-500.0,0.00013972,2]
[334813143,1723603855718,-500.0,0.00013972,2]
[334813144,1723603855728,-500.0,0.00013972,2]
[334813145,1723603855737,-500.0,0.00013972,2]
[334813146,1723603855747,-500.0,0.00013972,2]
[334813147,1723603855757,-1488.54,0.00013972,2]
[334813148,1723603855767,-500.0,0.00013972,2]
[334813149,1723603855777,-500.0,0.00013972,2]
[334813150,1723603855787,-500.0,0.00013972,2]
[334813151,1723603855798,-500.0,0.00013972,2]
[334813152,1723603855807,-500.0,0.00013972,2]
[334813153,1723603855927,-500.0,0.00013972,2]
[334813154,1723603855936,-500.0,0.00013972,2]
[334813155,1723603855949,-500.0,0.00013972,2]
[334813156,1723603855959,-500.0,0.00013972,2]
[334813157,1723603855968,-625.85,0.00013972,2]
[334813158,1723603855978,-500.0,0.00013972,2]
[334813159,1723603855987,-500.0,0.00013972,2]
[334813160,1723603855996,-500.0,0.00013972,2]
[334813161,1723603856005,-500.0,0.00013972,2]
[334813162,1723603856015,-500.0,0.00013972,2]
[334813163,1723603856025,-500.0,0.00013972,2]
[334813164,1723603856034,-500.0,0.00013972,2]
[334813165,1723603856044,-500.0,0.00013972,2]
[334813166,1723603856053,-490.37279809,0.00013972,2]
[334813167,1723603856062,-500.0,0.00013972,2]
[334813168,1723603856072,-3037.22,0.00013972,2]
[334813169,1723603856081,-500.0,0.00013972,2]
[334813170,1723603856091,-300.0,0.00013972,2]
[334813171,1723603856101,-500.0,0.00013972,2]
[334813172,1723603856111,-500.0,0.00013972,2]
[334813173,1723603856120,-500.0,0.00013972,2]
[334813174,1723603856130,-500.0,0.00013972,2]
[334813175,1723603856139,-1050.9,0.00013972,2]
[334813176,1723603856149,-500.0,0.00013972,2]
[334813177,1723603856159,-500.0,0.00013972,2]
[334813178,1723603856168,-500.0,0.00013972,2]
[334813179,1723603856177,-500.0,0.00013972,2]
[334813180,1723603856186,-500.0,0.00013972,2]
[334813181,1723603856196,-500.0,0.00013972,2]
[334813182,1723603856206,-500.0,0.00013972,2]
[334813183,1723603856215,-500.0,0.00013972,2]
[334813184,1723603856223,-500.0,0.00013972,2]
[334813185,1723603856232,-500.0,0.00013972,2]
[334813186,1723603856242,-500.0,0.00013972,2]
[334813187,1723603856251,-500.0,0.00013972,2]
[334813188,1723603856261,-500.0,0.00013972,2]
[334813189,1723603856270,-500.0,0.00013972,2]
[334813190,1723603856280,-500.0,0.00013972,2]
[334813191,1723603856289,-500.0,0.00013972,2]
[334813192,1723603856298,-500.0,0.00013972,2]
[334813193,1723603856307,-500.0,0.00013972,2]
[334813194,1723603856316,-500.0,0.00013972,2]
[334813195,1723603856326,-500.0,0.00013972,2]
[334813196,1723603856335,-500.0,0.00013972,2]
[334813197,1723603856345,-500.0,0.00013972,2]
[334813198,1723603856354,-898.04,0.00013972,2]
[334813199,1723603856363,-500.0,0.00013972,2]
[334813200,1723603856372,-1015.12,0.00013972,2]
[334813201,1723603856382,-500.0,0.00013972,2]
[334813202,1723603856391,-500.0,0.00013972,2]
[334813203,1723603856400,-677.19,0.00013972,2]
[334813204,1723603856409,-3125.45,0.00013972,2]
[334813205,1723603856419,-2121.22,0.00013972,2]
[334813206,1723603856428,-500.0,0.00013972,2]
[334813207,1723603856437,-500.0,0.00013972,2]
[334813208,1723603856446,-935.8,0.00013972,2]
[334813209,1723603856454,-500.0,0.00013972,2]
[334813210,1723603856463,-500.0,0.00013972,2]
[334813211,1723603856472,-2706.39,0.00013972,2]
[334813212,1723603856481,-500.0,0.00013972,2]
[334813213,1723603856490,-500.0,0.00013972,2]
[334813214,1723603856500,-500.0,0.00013972,2]
[334813215,1723603856509,-500.0,0.00013972,2]
[334813216,1723603856519,-500.0,0.00013972,2]
[334813217,1723603856528,-500.0,0.00013972,2]
[334813218,1723603856537,-4210.94,0.00013972,2]
[334813219,1723603856546,-500.0,0.00013972,2]
[334813220,1723603856555,-4601.07,0.00013972,2]
[334813221,1723603856564,-1228.41,0.00013972,2]
[334813222,1723603856573,-500.0,0.00013972,2]
[334813223,1723603856582,-500.0,0.00013972,2]
[334813224,1723603856591,-951.16,0.00013972,2]
[334813225,1723603856601,-302.79341165,0.00013972,2]
[334813226,1723603856610,-919.64,0.00013972,2]
[334813227,1723603856619,-571.53987981,0.00013972,2]
[334813228,1723603856628,-500.0,0.00013972,2]
[334813229,1723603856637,-584.56,0.00013972,2]
[334813230,1723603856646,-1794.95,0.00013972,2]
[334813231,1723603856656,-500.0,0.00013972,2]
[334813232,1723603856665,-3321.93,0.00013972,2]
[334813233,1723603856674,-1422.69,0.00013972,2]
[334813234,1723603856683,-500.0,0.00013972,2]
[334813235,1723603856692,-2496.28,0.00013972,2]
[334813236,1723603856702,-500.0,0.00013972,2]
[334813237,1723603856711,-1937.4,0.00013972,2]
[334813238,1723603856720,-500.0,0.00013972,2]
[334813239,1723603856729,-500.0,0.00013972,2]
[334813240,1723603856738,-500.0,0.00013972,2]
[334813241,1723603856747,-341.54776544,0.00013972,2]
[334813242,1723603856757,-702.18,0.00013972,2]
[334813243,1723603856766,-500.0,0.00013972,2]
[334813244,1723603856775,-500.0,0.00013972,2]
[334813245,1723603856784,-525.91,0.00013972,2]
[334813246,1723603856793,-720.77,0.00013972,2]
[334813247,1723603856802,-500.0,0.00013972,2]
[334813248,1723603856811,-500.0,0.00013972,2]
[334813249,1723603856820,-2973.74,0.00013972,2]
[334813250,1723603856830,-657.62,0.00013972,2]
[334813251,1723603856839,-2208.41,0.00013972,2]
[334813252,1723603856849,-2020.58,0.00013972,2]
[334813253,1723603856858,-409.54294669,0.00013972,2]
[334813254,1723603856867,-500.0,0.00013972,2]
[334813255,1723603856876,-956.36,0.00013972,2]
[334813256,1723603856886,-500.0,0.00013972,2]
[334813257,1723603856895,-500.0,0.00013972,2]
[334813258,1723603856904,-830.48,0.00013972,2]
[334813259,1723603856914,-908.14,0.00013972,2]
[334813260,1723603856922,-500.0,0.00013972,2]
[334813261,1723603856932,-1531.76,0.00013972,2]
[334813262,1723603856942,-806.72,0.00013972,2]
[334813263,1723603856955,-500.0,0.00013972,2]
[334813264,1723603856965,-256.70141295,0.00013972,2]
[334813265,1723603856974,-500.0,0.00013972,2]
[334813266,1723603856983,-1233.68,0.00013972,2]
[334813267,1723603856992,-881.49,0.00013972,2]
[334813268,1723603857001,-3549.23,0.00013972,2]
[334813269,1723603857010,-506.83,0.00013972,2]
[334813270,1723603857021,-514.31367063,0.00013972,2]
[334813271,1723603857033,-1686.3,0.00013972,2]
[334813272,1723603857043,-1104.64,0.00013972,2]
[334813273,1723603857053,-500.0,0.00013972,2]
[334813274,1723603857062,-500.0,0.00013972,2]
[334813275,1723603857071,-959.01,0.00013972,2]
[334813276,1723603857080,-500.0,0.00013972,2]
[334813277,1723603857089,-3432.32,0.00013972,2]
[334813278,1723603857099,-3444.79,0.00013972,2]
[334813279,1723603857108,-500.0,0.00013972,2]
[334813280,1723603857117,-500.0,0.00013972,2]
[334813281,1723603857126,-500.0,0.00013972,2]
[334813282,1723603857135,-1279.57,0.00013972,2]
[334813283,1723603857144,-500.0,0.00013972,2]
[334813284,1723603857153,-644.3,0.00013972,2]
[334813285,1723603857162,-500.0,0.00013972,2]
[334813286,1723603857172,-513.14994855,0.00013972,2]
[334813287,1723603857181,-500.0,0.00013972,2]
[334813288,1723603857191,-500.0,0.00013972,2]
[334813289,1723603857200,-526.04,0.00013972,2]
[334813290,1723603857209,-500.0,0.00013972,2]
[334813291,1723603857218,-604.27,0.00013972,2]
[334813292,1723603857227,-1106.38,0.00013972,2]
[334813293,1723603857236,-307.33608012,0.00013972,2]
[334813294,1723603857246,-1190.65,0.00013972,2]
[334813295,1723603857255,-500.0,0.00013972,2]
[334813296,1723603857264,-1152.6,0.00013972,2]
[334813297,1723603857273,-500.0,0.00013972,2]
[334813298,1723603857283,-500.0,0.00013972,2]
[334813299,1723603857292,-500.0,0.00013972,2]
[334813300,1723603857301,-621.41,0.00013972,2]
[334813301,1723603857311,-500.0,0.00013972,2]
[334813302,1723603857320,-500.0,0.00013972,2]
[334813303,1723603857330,-243.55395515,0.00013972,2]
[334813304,1723603857339,-3396.28,0.00013972,2]
[334813305,1723603857349,-500.0,0.00013972,2]
[334813306,1723603857358,-891.26,0.00013972,2]
[334813307,1723603857367,-500.0,0.00013972,2]
[334813308,1723603857376,-904.92,0.00013972,2]
[334813309,1723603857385,-500.0,0.00013972,2]
[334813310,1723603857394,-500.0,0.00013972,2]
[334813311,1723603857403,-257.0763529,0.00013972,2]
[334813312,1723603857412,-500.0,0.00013972,2]
[334813313,1723603857422,-500.0,0.00013972,2]
[334813314,1723603857431,-2942.78,0.00013972,2]
[334813315,1723603857440,-500.0,0.00013972,2]
[334813316,1723603857449,-504.737462,0.00013972,2]
[334813317,1723603857459,-500.0,0.00013972,2]
[334813318,1723603857468,-500.0,0.00013972,2]
[334813319,1723603857477,-692.81,0.00013972,2]
[334813320,1723603857486,-671.73,0.00013972,2]
[334813321,1723603857495,-500.0,0.00013972,2]
[334813322,1723603857504,-852.51,0.00013972,2]
[334813323,1723603857514,-500.0,0.00013972,2]
[334813324,1723603857524,-1883.45,0.00013972,2]
[334813325,1723603857533,-500.0,0.00013972,2]
[334813326,1723603857542,-500.0,0.00013972,2]
[334813327,1723603857551,-531.95,0.00013972,2]
[334813328,1723603857561,-4358.76,0.00013972,2]
[334813329,1723603857570,-500.0,0.00013972,2]
[334813330,1723603857579,-500.0,0.00013972,2]
[334813331,1723603857588,-601.64,0.00013972,2]
[334813332,1723603857599,-500.0,0.00013972,2]
[334813333,1723603857608,-500.0,0.00013972,2]
[334813334,1723603857618,-1102.89,0.00013972,2]
[334813335,1723603857627,-500.0,0.00013972,2]
[334813336,1723603857637,-3773.36,0.00013972,2]
[334813337,1723603857646,-500.0,0.00013972,2]
[334813338,1723603857655,-1274.4,0.00013972,2]
[334813339,1723603857664,-1238.0,0.00013972,2]
[334813340,1723603857674,-500.0,0.00013972,2]
[334813341,1723603857683,-500.0,0.00013972,2]
[334813342,1723603857693,-500.0,0.00013972,2]
[334813343,1723603857702,-3131.44,0.00013972,2]
[334813344,1723603857711,-500.0,0.00013972,2]
[334813345,1723603857721,-500.0,0.00013972,2]
[334813346,1723603857730,-2308.42,0.00013972,2]
[334813347,1723603857740,-3908.47,0.00013972,2]
[334813348,1723603857749,-500.0,0.00013972,2]
[334813349,1723603857758,-500.0,0.00013972,2]
[334813350,1723603857767,-2319.06,0.00013972,2]
[334813351,1723603857776,-500.0,0.00013972,2]
[334813352,1723603857786,-500.0,0.00013972,2]
[334813353,1723603857795,-1013.41,0.00013972,2]
[334813354,1723603857804,-500.0,0.00013972,2]
[334813355,1723603857814,-500.0,0.00013972,2]
[334813356,1723603857823,-4275.05,0.00013972,2]
[334813357,1723603857833,-506.3876225,0.00013972,2]
[334813358,1723603857842,-543.97,0.00013972,2]
[334813359,1723603857854,-500.0,0.00013972,2]
[334813360,1723603857863,-500.0,0.00013972,2]
[334813361,1723603857872,-611.41,0.00013972,2]
[334813362,1723603857882,-4269.05,0.00013972,2]
[334813363,1723603857891,-1143.12,0.00013972,2]
[334813364,1723603857901,-500.0,0.00013972,2]
[334813365,1723603857911,-1116.18,0.00013972,2]
[334813366,1723603857923,-4663.28,0.00013972,2]
[334813367,1723603857935,-1963.14,0.00013972,2]
[334813368,1723603857949,-500.0,0.00013972,2]